[Event "Turkish Club Cup 2019"]
[Site "Konya"]
[Date "2019.07.18"]
[Round "4"]
[White "Tuncer, Duru"]
[Black "Koyuncu, Haticesu"]
[Result "1/2-1/2"]
[ECO "C10"]
[WhiteElo "1520"]
[BlackElo "1454"]
[Annotator "NA RC"]
[PlyCount "73"]
[EventDate "2019.07.16"]
[EventType "team-tourn"]
[EventCountry "TUR"]
[SourceTitle "playchess.com"]
[Source "ChessBase"]
[SourceQuality "1"]
[TimeControl "5400+30"]

1. e4 e6 2. d4 d5 3. Nd2 dxe4 4. Nxe4 Nd7 5. Nf3 Ngf6 6. Nxf6+ Nxf6 7. Bg5 Be7 8. Bd3 O-O 9. O-O b6 10. c3 Bb7 11. Ne5 h6 12. Bh4 a6 13. f3 Nd7 14. Bxe7 Qxe7 15. Qe2 Nxe5 16. Qxe5 Rfd8 17. Be4 Bd5 18. Rfd1 Qd6 19. Qxd6 Rxd6 20. c4 Bxe4 21. fxe4 Rad8 22. d5 exd5 23. Rxd5 Kf8 24. Rad1 Ke7 25. Kf2 f6 26. Ke3 c6 27. Rxd6 Rxd6 28. Rxd6 Kxd6 29. Kf4 Ke6 30. g4 g5+ 31. Ke3 c5 32. b3 Ke5 33. h3 Ke6 34. Kd3 Kd6 35. a3 a5 36. a4 Ke6 37. Ke2 1/2-1/2

[Event "Turkish Club Cup 2019"]
[Site "Konya"]
[Date "2019.07.18"]
[Round "4"]
[White "Akyildiz, Alptug"]
[Black "Senturk, Necaattin"]
[Result "1/2-1/2"]
[ECO "D27"]
[WhiteElo "1515"]
[BlackElo "1704"]
[Annotator "NA RC"]
[PlyCount "109"]
[EventDate "2019.07.16"]
[EventType "team-tourn"]
[EventCountry "TUR"]
[SourceTitle "playchess.com"]
[Source "ChessBase"]
[SourceQuality "1"]
[TimeControl "5400+30"]

1. d4 {[%emt 0:00:30]} d5 {[%emt 0:01:30]} 2. c4 {[%emt 0:00:00]} dxc4 {[%emt 0:00:30]} 3. Nc3 {[%emt 0:00:00]} Nf6 {[%emt 0:00:30]} 4. e3 {[%emt 0:00:30]} e6 {[%emt 0:00:30]} 5. Bxc4 {[%emt 0:00:30]} a6 {[%emt 0:00:30]} 6. Nf3 {[%emt 0:01:30]} b5 {[%emt 0:00:30]} 7. Bd3 {[%emt 0:01:30]} Bb7 {[%emt 0:10:30]} 8. O-O {[%emt 0:05:30]} c5 {[%emt 0:01:30]} 9. Re1 {[%emt 0:06:30]} Nbd7 {[%emt 0:01:30]} 10. a3 {[%emt 0:04:30]} Be7 {[%emt 0:15:30]} 11. Bd2 {[%emt 0:04:30]} Rc8 {[%emt 0:02:30]} 12. Rc1 {[%emt 0:00:30]} O-O {[%emt 0:00:30]} 13. Qe2 {[%emt 0:00:30]} Qb6 {[%emt 0:01:30]} 14. Bb1 {[%emt 0:10:30]} Rfd8 {[%emt 0:00:30]} 15. Rcd1 {[%emt 0:06:30]} cxd4 {[%emt 0:07:30]} 16. Nxd4 {[%emt 0:04:30]} Ne5 {[%emt 0:01:30]} 17. Nf3 {[%emt 0:04:30]} Nc4 {[%emt 0:07:30]} 18. Bc1 {[%emt 0:04:30]} Nxa3 {[%emt 0:05:30]} 19. bxa3 {[%emt 0:05:30]} Rxc3 {[%emt 0:00:30]} 20. Bb2 {[%emt 0:00:30]} Rcc8 {[%emt 0:00:30]} 21. Rxd8+ {[%emt 0:01:30]} Rxd8 {[%emt 0:00:00]} 22. Rc1 {[%emt 0:01:30]} Qa5 {[%emt 0:02:00]} 23. Qc2 {[%emt 0:04:30]} Be4 {[%emt 0:00:30]} 24. Qb3 {[%emt 0:07:30]} Bxb1 {[%emt 0:01:30]} 25. Rxb1 {[%emt 0:00:30]} Ne4 {[%emt 0:00:00]} 26. g3 {[%emt 0:07:14]} Nd2 {[%emt 0:01:00]} 27. Nxd2 {[%emt 0:00:10]} Qxd2 {[%emt 0:00:30]} 28. Bc3 {[%emt 0:01:07]} Qd5 {[%emt 0:00:30]} 29. Qb2 {[%emt 0:01:16]} Bf8 {[%emt 0:00:30]} 30. Bd4 {[%emt 0:01:25]} Rc8 {[%emt 0:01:30]} 31. Bc3 {[%emt 0:03:51]} Rc4 {[%emt 0:01:30]} 32. Bb4 {[%emt 0:00:40]} Qf5 {[%emt 0:01:30]} 33. Rc1 {[%emt 0:01:53]} Qd5 {[%emt 0:01:30]} 34. Rb1 {[%emt 0:04:42]} h5 {[%emt 0:06:30]} 35. Qe2 {[%emt 0:01:14]} Qf5 {[%emt 0:07:36]} 36. Rb2 {[%emt 0:02:29]} Qh3 {[%emt 0:05:27]} 37. Rc2 {[%emt 0:01:05]} Rxc2 {[%emt 0:03:35]} 38. Qxc2 {[%emt 0:00:04]} Bxb4 {[%emt 0:00:00]} 39. axb4 {[%emt 0:00:39]} Qg4 {[%emt 0:00:00]} 40. Qd2 {[%emt 0:00:35]} Qc4 {[%emt 0:00:22]} 41. f3 {[%emt 0:00:48]} Qc6 {[%emt 0:02:08]} 42. Kf2 {[%emt 0:00:12]} Qc4 {[%emt 0:00:19]} 43. Kg1 {[%emt 0:00:18]} Qb3 {[%emt 0:00:37]} 44. Kf2 {[%emt 0:00:52]} Qb1 {[%emt 0:00:07]} 45. Kg2 {[%emt 0:00:00]} Qb3 {[%emt 0:00:29]} 46. Kf2 {[%emt 0:00:13]} Qc4 {[%emt 0:00:32]} 47. Kg1 {[%emt 0:00:30]} g6 {[%emt 0:00:52]} 48. h4 {[%emt 0:01:19]} Qc6 {[%emt 0:03:48]} 49. Qd8+ {[%emt 0:00:19]} Kg7 {[%emt 0:00:43]} 50. Qd4+ {[%emt 0:00:08]} Kh7 {[%emt 0:00:00]} 51. e4 {[%emt 0:01:15]} Qc1+ {[%emt 0:01:20]} 52. Kf2 {[%emt 0:00:09]} Qc2+ {[%emt 0:00:40]} 53. Ke3 {[%emt 0:00:30]} Qc1+ {[%emt 0:00:50]} 54. Ke2 {[%emt 0:00:29]} Qc2+ {[%emt 0:00:47]} 55. Ke3 {[%emt 0:01:04]} 1/2-1/2

[Event "Turkish Club Cup 2019"]
[Site "Konya"]
[Date "2019.07.18"]
[Round "4"]
[White "Koc, Bugra Ege"]
[Black "Cevrin, Muhammed Cemre"]
[Result "1/2-1/2"]
[ECO "D77"]
[WhiteElo "1493"]
[BlackElo "1860"]
[Annotator "NA RC"]
[PlyCount "64"]
[EventDate "2019.07.16"]
[EventType "team-tourn"]
[EventCountry "TUR"]
[SourceTitle "playchess.com"]
[Source "ChessBase"]
[SourceQuality "1"]
[TimeControl "5400+30"]

1. d4 {[%emt 0:00:30]} Nf6 {[%emt 0:00:30]} 2. Nf3 {[%emt 0:00:30]} g6 {[%emt 0:00:00]} 3. g3 {[%emt 0:00:00]} Bg7 {[%emt 0:00:00]} 4. Bg2 {[%emt 0:00:00]} d5 {[%emt 0:00:00]} 5. O-O {[%emt 0:00:30]} O-O {[%emt 0:00:00]} 6. c4 {[%emt 0:00:00]} dxc4 {[%emt 0:00:30]} 7. Na3 {[%emt 0:00:00]} c3 {[%emt 0:00:30]} 8. bxc3 {[%emt 0:00:00]} c5 {[%emt 0:00:00]} 9. e3 {[%emt 0:00:00]} Nc6 {[%emt 0:08:00]} 10. Bb2 {[%emt 0:03:30]} Bf5 {[%emt 0:00:00]} 11. Qe2 {[%emt 0:01:30]} Be4 {[%emt 0:00:00]} 12. Rfd1 {[%emt 0:04:30]} Qa5 {[%emt 0:01:30]} 13. Nd2 {[%emt 0:15:30]} Bxg2 {[%emt 0:05:30]} 14. Kxg2 {[%emt 0:00:00]} cxd4 {[%emt 0:03:30]} 15. cxd4 {[%emt 0:00:00]} Rfd8 {[%emt 0:01:30]} 16. Nb3 {[%emt 0:14:30]} Qd5+ {[%emt 0:21:30]} 17. Qf3 Ne4 {[%emt 0:01:30]} 18. Nb5 {[%emt 0:45:32]} Qxb5 {[%emt 0:27:30]} 19. Qxe4 {[%emt 0:00:12]} e6 {[%emt 0:15:21]} 20. Rab1 {[%emt 0:02:30]} b6 {[%emt 0:04:26]} 21. Nd2 {[%emt 0:06:56]} Qa4 {[%emt 0:01:35]} 22. Nf3 {[%emt 0:01:44]} Ne7 {[%emt 0:05:01]} 23. a3 {[%emt 0:01:41]} Nd5 {[%emt 0:00:06]} 24. Rdc1 {[%emt 0:01:21]} Rac8 {[%emt 0:00:35]} 25. Ne5 {[%emt 0:00:53]} Rxc1 {[%emt 0:03:06]} 26. Rxc1 {[%emt 0:00:30]} Qb5 {[%emt 0:00:00]} 27. Qc2 {[%emt 0:00:11]} Bh6 {[%emt 0:00:25]} 28. Qb1 {[%emt 0:00:43]} Qe2 {[%emt 0:00:38]} 29. Re1 {[%emt 0:00:24]} Nxe3+ {[%emt 0:00:02]} 30. Kg1 {[%emt 0:00:26]} Qc2 {[%emt 0:01:11]} 31. fxe3 {[%emt 0:00:39]} Bxe3+ {[%emt 0:00:30]} 32. Kh1 {[%emt 0:00:11]} Qb3 {[%emt 0:00:20]} 1/2-1/2

[Event "Turkish Club Cup 2019"]
[Site "Konya"]
[Date "2019.07.18"]
[Round "4"]
[White "Ince, Eray"]
[Black "Emir, Emirhan"]
[Result "0-1"]
[ECO "A90"]
[WhiteElo "1459"]
[BlackElo "1904"]
[Annotator "NA RC"]
[PlyCount "122"]
[EventDate "2019.07.16"]
[EventType "team-tourn"]
[EventCountry "TUR"]
[SourceTitle "playchess.com"]
[Source "ChessBase"]
[SourceQuality "1"]
[TimeControl "5400+30"]

1. d4 {[%emt 0:00:30]} e6 {[%emt 0:00:30]} 2. Nf3 {[%emt 0:00:30]} f5 {[%emt 0:00:00]} 3. g3 {[%emt 0:00:00]} Nf6 {[%emt 0:00:00]} 4. Bg2 {[%emt 0:00:00]} d5 {[%emt 0:00:00]} 5. c4 {[%emt 0:00:30]} c6 {[%emt 0:00:00]} 6. O-O {[%emt 0:00:30]} Bd6 {[%emt 0:00:00]} 7. cxd5 {[%emt 0:00:30]} exd5 {[%emt 0:00:00]} 8. Nc3 {[%emt 0:02:30]} O-O {[%emt 0:00:00]} 9. Nd2 {[%emt 0:03:30]} Qe7 {[%emt 0:00:00]} 10. Nb3 {[%emt 0:02:30]} b5 {[%emt 0:01:30]} 11. Bg5 {[%emt 0:02:30]} Bb7 {[%emt 0:00:30]} 12. Na5 {[%emt 0:01:30]} Kh8 {[%emt 0:18:30]} 13. Qc2 {[%emt 0:01:30]} h6 {[%emt 0:11:30]} 14. Bxf6 {[%emt 0:03:30]} Rxf6 {[%emt 0:00:00]} 15. Rae1 {[%emt 0:05:30]} Na6 {[%emt 0:00:00]} 16. Nxb7 {[%emt 0:04:30]} Qxb7 {[%emt 0:03:30]} 17. f3 {[%emt 0:01:30]} b4 {[%emt 0:07:30]} 18. Na4 {[%emt 0:03:30]} f4 {[%emt 0:05:30]} 19. e4 {[%emt 0:04:30]} Rff8 {[%emt 0:03:30]} 20. exd5 {[%emt 0:06:30]} cxd5 {[%emt 0:01:30]} 21. Re6 {[%emt 0:00:00]} Rad8 {[%emt 0:07:30]} 22. g4 {[%emt 0:04:00]} Nc7 {[%emt 0:01:30]} 23. Rg6 {[%emt 0:01:30]} Nb5 {[%emt 0:00:30]} 24. Qd3 {[%emt 0:08:30]} Rfe8 {[%emt 0:01:30]} 25. Rd1 {[%emt 0:03:30]} Re3 {[%emt 0:07:30]} 26. Qf5 {[%emt 0:02:30]} Rf8 {[%emt 0:00:30]} 27. Qh5 {[%emt 0:00:30]} Qe7 {[%emt 0:02:30]} 28. g5 {[%emt 0:06:30]} Rf5 {[%emt 0:00:30]} 29. h4 {[%emt 0:06:30]} Re1+ {[%emt 0:07:30]} 30. Rxe1 {[%emt 0:00:30]} Qxe1+ {[%emt 0:00:00]} 31. Kh2 {[%emt 0:00:00]} Bf8 {[%emt 0:01:00]} 32. Qg4 {[%emt 0:01:00]} Nxd4 {[%emt 0:04:56]} 33. gxh6 {[%emt 0:01:30]} Rf7 {[%emt 0:01:16]} 34. Qh5 {[%emt 0:11:51]} gxh6 {[%emt 0:02:14]} 35. Rg4 {[%emt 0:00:27]} Qe6 {[%emt 0:00:59]} 36. Rg6 {[%emt 0:00:41]} Rf6 {[%emt 0:06:42]} 37. Nc5 {[%emt 0:02:00]} Qf7 {[%emt 0:00:34]} 38. Qe5 {[%emt 0:01:47]} Qxg6 {[%emt 0:01:19]} 39. Qxd4 {[%emt 0:00:02]} Bxc5 {[%emt 0:00:24]} 40. Qxc5 {[%emt 0:00:02]} Qg3+ {[%emt 0:00:48]} 41. Kg1 {[%emt 0:00:11]} Rg6 {[%emt 0:00:27]} 42. Qc8+ {[%emt 0:00:43]} Kh7 {[%emt 0:00:07]} 43. Qd7+ {[%emt 0:00:43]} Rg7 {[%emt 0:00:01]} 44. Qf5+ {[%emt 0:00:24]} Qg6 {[%emt 0:00:30]} 45. Qh3 {[%emt 0:00:00]} Qc2 {[%emt 0:01:08]} 46. h5 {[%emt 0:00:09]} Rxg2+ {[%emt 0:01:37]} 47. Qxg2 {[%emt 0:00:30]} Qxg2+ {[%emt 0:00:30]} 48. Kxg2 {[%emt 0:00:00]} Kg7 {[%emt 0:00:00]} 49. Kf2 {[%emt 0:00:25]} Kf6 {[%emt 0:00:00]} 50. Ke2 {[%emt 0:00:30]} Kg5 {[%emt 0:00:00]} 51. Kd3 {[%emt 0:00:00]} Kxh5 {[%emt 0:00:12]} 52. Kd4 {[%emt 0:00:10]} Kg5 {[%emt 0:00:00]} 53. Kxd5 {[%emt 0:00:00]} h5 {[%emt 0:00:00]} 54. Kc4 {[%emt 0:00:14]} h4 {[%emt 0:00:06]} 55. Kxb4 {[%emt 0:00:00]} h3 {[%emt 0:00:09]} 56. Kb5 {[%emt 0:00:16]} h2 {[%emt 0:00:00]} 57. Ka6 {[%emt 0:00:06]} h1=Q {[%emt 0:00:19]} 58. Kxa7 {[%emt 0:00:30]} Qxf3 {[%emt 0:00:00]} 59. a4 {[%emt 0:00:00]} Qb3 {[%emt 0:00:10]} 60. a5 {[%emt 0:00:00]} Qxb2 {[%emt 0:00:07]} 61. a6 {[%emt 0:00:04]} Qb5 {[%emt 0:00:00]} 0-1

[Event "Turkish Club Cup 2019"]
[Site "Konya"]
[Date "2019.07.18"]
[Round "4"]
[White "Dizdar, Didem Dilara"]
[Black "Tetik, Muhammed"]
[Result "0-1"]
[ECO "E60"]
[WhiteElo "1419"]
[BlackElo "1517"]
[Annotator "NA"]
[PlyCount "92"]
[EventDate "2019.07.16"]
[EventType "team-tourn"]
[EventCountry "TUR"]
[SourceTitle "playchess.com"]
[Source "ChessBase"]
[SourceQuality "1"]
[TimeControl "5400+30"]

1. d4 {[%emt 0:00:30]} Nf6 {[%emt 0:00:30]} 2. c4 {[%emt 0:00:30]} g6 {[%emt 0:00:00]} 3. Nf3 {[%emt 0:00:00]} Bg7 {[%emt 0:00:00]} 4. g3 {[%emt 0:00:00]} O-O {[%emt 0:00:00]} 5. Bg2 {[%emt 0:00:30]} c5 {[%emt 0:02:00]} 6. e3 {[%emt 0:00:30]} cxd4 {[%emt 0:01:30]} 7. exd4 {[%emt 0:00:30]} d5 {[%emt 0:00:00]} 8. b3 {[%emt 0:00:30]} Nc6 {[%emt 0:01:00]} 9. O-O {[%emt 0:00:30]} Bg4 {[%emt 0:05:30]} 10. Bb2 {[%emt 0:01:30]} Qd7 {[%emt 0:05:30]} 11. Nbd2 {[%emt 0:16:30]} Rad8 {[%emt 0:04:30]} 12. Qc1 {[%emt 0:08:30]} Bh6 {[%emt 0:00:30]} 13. Qc3 {[%emt 0:05:30]} dxc4 {[%emt 0:09:30]} 14. bxc4 {[%emt 0:00:30]} Bxd2 {[%emt 0:00:30]} 15. Qxd2 {[%emt 0:01:30]} Bxf3 {[%emt 0:00:30]} 16. Bxf3 {[%emt 0:00:00]} Nxd4 {[%emt 0:00:00]} 17. Bxd4 {[%emt 0:02:00]} Qxd4 {[%emt 0:00:00]} 18. Qxd4 {[%emt 0:00:30]} Rxd4 {[%emt 0:00:30]} 19. Bxb7 {[%emt 0:00:00]} Rxc4 {[%emt 0:00:00]} 20. Rfc1 {[%emt 0:00:00]} Rd4 {[%emt 0:05:00]} 21. Rc7 {[%emt 0:03:30]} e6 {[%emt 0:00:30]} 22. Rac1 {[%emt 0:02:30]} Rfd8 {[%emt 0:00:30]} 23. Bf3 {[%emt 0:09:30]} R8d7 {[%emt 0:01:30]} 24. Rxd7 {[%emt 0:00:30]} Rxd7 {[%emt 0:00:30]} 25. Rd1 {[%emt 0:01:30]} Rc7 {[%emt 0:01:30]} 26. Rd2 {[%emt 0:02:30]} Kg7 {[%emt 0:01:30]} 27. Kg2 {[%emt 0:01:30]} Nd7 {[%emt 0:02:30]} 28. Rb2 {[%emt 0:14:30]} f5 {[%emt 0:02:30]} 29. Bd1 {[%emt 0:04:30]} Kf6 {[%emt 0:02:30]} 30. f4 {[%emt 0:02:30]} e5 {[%emt 0:09:30]} 31. fxe5+ {[%emt 0:02:30]} Nxe5 {[%emt 0:00:30]} 32. Rc2 {[%emt 0:01:37]} Rxc2+ {[%emt 0:01:30]} 33. Bxc2 {[%emt 0:00:07]} Ng4 {[%emt 0:07:30]} 34. Bb3 {[%emt 0:00:46]} Ne3+ {[%emt 0:01:30]} 35. Kf3 {[%emt 0:01:31]} Nf1 {[%emt 0:01:30]} 36. Kg2 {[%emt 0:00:41]} Nd2 {[%emt 0:00:00]} 37. Bd1 {[%emt 0:02:43]} Ke5 {[%emt 0:01:00]} 38. h4 {[%emt 0:03:00]} h6 {[%emt 0:01:30]} 39. g4 {[%emt 0:01:57]} Nc4 {[%emt 0:01:30]} 40. Kf2 {[%emt 0:02:36]} Kf4 {[%emt 0:01:30]} 41. gxf5 {[%emt 0:00:19]} gxf5 {[%emt 0:00:30]} 42. Be2 {[%emt 0:02:17]} Nd2 {[%emt 0:02:30]} 43. Bd1 {[%emt 0:01:33]} Ne4+ {[%emt 0:00:00]} 44. Kg2 {[%emt 0:00:37]} Ke3 {[%emt 0:00:00]} 45. Bh5 {[%emt 0:01:09]} f4 {[%emt 0:00:30]} 46. Bg4 {[%emt 0:02:05]} Nd2 {[%emt 0:00:30]} 0-1

[Event "Turkish Club Cup 2019"]
[Site "Konya"]
[Date "2019.07.18"]
[Round "4"]
[White "Koca, Yildiray"]
[Black "Unlu, Alp Bugra"]
[Result "0-1"]
[ECO "C54"]
[WhiteElo "1418"]
[BlackElo "1832"]
[Annotator "NA RC"]
[PlyCount "68"]
[EventDate "2019.07.16"]
[EventType "team-tourn"]
[EventCountry "TUR"]
[SourceTitle "playchess.com"]
[Source "ChessBase"]
[SourceQuality "1"]
[TimeControl "5400+30"]

1. e4 {[%emt 0:00:30]} e5 {[%emt 0:00:30]} 2. Nf3 {[%emt 0:00:30]} Nc6 {[%emt 0:00:00]} 3. Bc4 {[%emt 0:00:30]} Bc5 {[%emt 0:00:00]} 4. c3 {[%emt 0:00:00]} Nf6 {[%emt 0:00:30]} 5. d4 {[%emt 0:00:00]} exd4 {[%emt 0:00:00]} 6. cxd4 {[%emt 0:00:30]} Bb4+ {[%emt 0:00:00]} 7. Nc3 {[%emt 0:00:30]} Nxe4 {[%emt 0:03:30]} 8. O-O {[%emt 0:00:30]} Bxc3 {[%emt 0:01:30]} 9. d5 {[%emt 0:03:30]} Bf6 {[%emt 0:02:30]} 10. dxc6 {[%emt 0:04:30]} O-O {[%emt 0:07:30]} 11. Qd5 {[%emt 0:05:30]} Nd6 {[%emt 0:00:30]} 12. Bd3 {[%emt 0:03:30]} dxc6 {[%emt 0:10:30]} 13. Qh5 {[%emt 0:11:30]} g6 {[%emt 0:00:30]} 14. Qc5 {[%emt 0:02:30]} Bf5 {[%emt 0:17:30]} 15. Bxf5 {[%emt 0:07:30]} Nxf5 {[%emt 0:00:30]} 16. Bf4 {[%emt 0:02:30]} Re8 {[%emt 0:15:30]} 17. Rad1 {[%emt 0:04:30]} Qe7 {[%emt 0:00:30]} 18. Qc2 {[%emt 0:04:30]} Nh4 {[%emt 0:07:30]} 19. Nxh4 {[%emt 0:07:30]} Bxh4 {[%emt 0:00:30]} 20. g3 {[%emt 0:00:30]} Bf6 {[%emt 0:08:30]} 21. h4 {[%emt 0:08:30]} a6 {[%emt 0:04:48]} 22. h5 {[%emt 0:05:30]} g5 {[%emt 0:04:38]} 23. Be3 {[%emt 0:01:30]} Rad8 {[%emt 0:04:35]} 24. Bc5 {[%emt 0:04:30]} Qe6 {[%emt 0:02:56]} 25. Rde1 {[%emt 0:04:54]} Qg4 {[%emt 0:03:27]} 26. Kg2 {[%emt 0:03:41]} Qxh5 {[%emt 0:00:54]} 27. Be3 {[%emt 0:03:05]} Qg6 {[%emt 0:00:42]} 28. Qc1 {[%emt 0:00:14]} Qf5 {[%emt 0:01:23]} 29. Rh1 {[%emt 0:00:17]} Qd5+ {[%emt 0:00:42]} 30. f3 {[%emt 0:00:59]} g4 {[%emt 0:01:33]} 31. Ref1 {[%emt 0:01:27]} Bxb2 {[%emt 0:01:38]} 32. Qc2 {[%emt 0:00:30]} Qd3 {[%emt 0:00:00]} 33. Qxd3 {[%emt 0:01:44]} Rxd3 {[%emt 0:00:00]} 34. Bf4 {[%emt 0:00:15]} Re2+ {[%emt 0:00:15]} 0-1

[Event "Turkish Club Cup 2019"]
[Site "Konya"]
[Date "2019.07.18"]
[Round "4"]
[White "Baycu, Arda"]
[Black "Pasa, Ahmet"]
[Result "0-1"]
[ECO "B53"]
[WhiteElo "1394"]
[BlackElo "1500"]
[Annotator "NA RC"]
[PlyCount "120"]
[EventDate "2019.07.16"]
[EventType "team-tourn"]
[EventCountry "TUR"]
[SourceTitle "playchess.com"]
[Source "ChessBase"]
[SourceQuality "1"]
[TimeControl "5400+30"]

1. e4 {[%emt 0:00:30]} c5 {[%emt 0:00:30]} 2. Nf3 {[%emt 0:00:30]} d6 {[%emt 0:00:00]} 3. d4 {[%emt 0:00:30]} cxd4 {[%emt 0:00:00]} 4. Qxd4 {[%emt 0:00:30]} a6 {[%emt 0:00:00]} 5. Bg5 {[%emt 0:05:30]} Nc6 {[%emt 0:00:00]} 6. Qd2 {[%emt 0:00:30]} h6 {[%emt 0:00:30]} 7. Bh4 {[%emt 0:00:30]} g5 {[%emt 0:00:30]} 8. Bg3 {[%emt 0:00:00]} Bg7 {[%emt 0:00:00]} 9. Nc3 {[%emt 0:05:00]} Be6 {[%emt 0:02:00]} 10. Be2 {[%emt 0:14:30]} Rc8 {[%emt 0:11:30]} 11. O-O {[%emt 0:02:30]} Nf6 {[%emt 0:00:30]} 12. e5 {[%emt 0:01:30]} dxe5 {[%emt 0:03:30]} 13. Qxd8+ {[%emt 0:00:30]} Rxd8 {[%emt 0:00:30]} 14. Nxe5 {[%emt 0:00:00]} Nd4 {[%emt 0:05:30]} 15. Bd3 {[%emt 0:04:00]} Nh5 {[%emt 0:02:30]} 16. Rfe1 {[%emt 0:05:30]} Nxg3 {[%emt 0:01:30]} 17. hxg3 {[%emt 0:00:30]} O-O {[%emt 0:01:30]} 18. Na4 {[%emt 0:05:30]} Rd5 {[%emt 0:08:30]} 19. f4 {[%emt 0:11:30]} b5 {[%emt 0:11:30]} 20. Nc3 {[%emt 0:06:30]} Rc5 {[%emt 0:05:30]} 21. Rad1 {[%emt 0:01:30]} Bxe5 {[%emt 0:13:30]} 22. Rxe5 {[%emt 0:01:30]} Rxe5 {[%emt 0:04:30]} 23. fxe5 {[%emt 0:00:30]} Nc6 {[%emt 0:00:30]} 24. Re1 {[%emt 0:02:30]} Rd8 {[%emt 0:01:30]} 25. a4 {[%emt 0:02:30]} b4 {[%emt 0:01:30]} 26. Ne4 {[%emt 0:01:30]} a5 {[%emt 0:09:56]} 27. Nc5 {[%emt 0:00:30]} Rd5 {[%emt 0:05:31]} 28. Nxe6 {[%emt 0:00:30]} fxe6 {[%emt 0:00:31]} 29. Bc4 {[%emt 0:00:30]} Rxe5 {[%emt 0:00:00]} 30. Rxe5 {[%emt 0:00:30]} Nxe5 {[%emt 0:00:00]} 31. Bxe6+ {[%emt 0:00:30]} Kg7 {[%emt 0:00:00]} 32. Kf2 {[%emt 0:00:30]} Kf6 {[%emt 0:00:00]} 33. Bb3 {[%emt 0:01:30]} Nd7 {[%emt 0:00:18]} 34. c4 {[%emt 0:01:30]} Nc5 {[%emt 0:00:35]} 35. Bc2 {[%emt 0:01:30]} b3 {[%emt 0:01:01]} 36. Bd1 {[%emt 0:00:30]} Nxa4 {[%emt 0:03:19]} 37. Bxb3 {[%emt 0:00:30]} Nxb2 {[%emt 0:01:18]} 38. Ke3 {[%emt 0:01:30]} a4 {[%emt 0:01:04]} 39. Ba2 {[%emt 0:00:00]} Ke5 {[%emt 0:00:58]} 40. c5 {[%emt 0:02:00]} Nd1+ {[%emt 0:00:59]} 41. Kd3 {[%emt 0:03:39]} Nf2+ {[%emt 0:00:44]} 42. Kc4 {[%emt 0:00:13]} Ne4 {[%emt 0:00:48]} 43. g4 {[%emt 0:01:15]} a3 {[%emt 0:02:23]} 44. Kb4 {[%emt 0:01:42]} Kd4 {[%emt 0:03:12]} 45. c6 {[%emt 0:00:11]} Nd6 {[%emt 0:00:00]} 46. Kxa3 {[%emt 0:01:35]} Kc5 {[%emt 0:00:23]} 47. c7 {[%emt 0:00:48]} Nb5+ {[%emt 0:00:30]} 48. Kb3 {[%emt 0:00:30]} Nxc7 {[%emt 0:00:30]} 49. Kc3 {[%emt 0:00:00]} Ne8 {[%emt 0:00:00]} 50. Be6 {[%emt 0:00:00]} Kd6 {[%emt 0:00:00]} 51. Bc4 {[%emt 0:00:00]} Ke5 {[%emt 0:00:03]} 52. Be2 {[%emt 0:00:35]} Kf4 {[%emt 0:00:30]} 53. Kd4 {[%emt 0:00:00]} Nf6 {[%emt 0:00:10]} 54. Bf3 {[%emt 0:01:01]} e5+ {[%emt 0:00:09]} 55. Kc5 {[%emt 0:00:00]} e4 {[%emt 0:00:17]} 56. Bd1 {[%emt 0:00:06]} Nxg4 {[%emt 0:00:44]} 57. Kd4 {[%emt 0:00:06]} Nf2 {[%emt 0:00:02]} 58. Be2 {[%emt 0:00:11]} g4 {[%emt 0:00:34]} 59. Ba6 {[%emt 0:01:03]} h5 {[%emt 0:00:35]} 60. Bf1 {[%emt 0:00:30]} h4 {[%emt 0:00:30]} 0-1

[Event "Turkish Club Cup 2019"]
[Site "Konya"]
[Date "2019.07.18"]
[Round "4"]
[White "Yalcin, Nehir"]
[Black "Kiziltas, Ece Su"]
[Result "1-0"]
[ECO "B06"]
[WhiteElo "1392"]
[BlackElo "1400"]
[Annotator "NA RC"]
[PlyCount "79"]
[EventDate "2019.07.16"]
[EventType "team-tourn"]
[EventCountry "TUR"]
[SourceTitle "playchess.com"]
[Source "ChessBase"]
[SourceQuality "1"]
[TimeControl "5400+30"]

1. e4 {[%emt 0:00:30]} c6 {[%emt 0:00:30]} 2. d4 {[%emt 0:00:00]} g6 {[%emt 0:00:30]} 3. Nc3 {[%emt 0:00:00]} Bg7 {[%emt 0:00:00]} 4. Be3 {[%emt 0:00:30]} d6 {[%emt 0:01:00]} 5. Qd2 {[%emt 0:03:30]} b5 {[%emt 0:01:30]} 6. Bd3 {[%emt 0:05:30]} Nd7 {[%emt 0:04:30]} 7. Nge2 {[%emt 0:02:30]} Bb7 {[%emt 0:10:30]} 8. O-O {[%emt 0:08:30]} Ngf6 {[%emt 0:01:30]} 9. h3 {[%emt 0:01:30]} O-O {[%emt 0:02:30]} 10. f4 {[%emt 0:05:30]} a6 {[%emt 0:06:30]} 11. Ng3 {[%emt 0:07:30]} c5 {[%emt 0:01:30]} 12. d5 {[%emt 0:10:30]} Qc7 {[%emt 0:06:30]} 13. Be2 {[%emt 0:04:30]} h5 {[%emt 0:02:30]} 14. f5 {[%emt 0:05:30]} Ne5 {[%emt 0:08:30]} 15. Bf4 {[%emt 0:10:30]} b4 {[%emt 0:10:30]} 16. Nd1 {[%emt 0:00:30]} h4 {[%emt 0:00:30]} 17. Bxe5 {[%emt 0:01:30]} hxg3 {[%emt 0:08:30]} 18. Bxf6 {[%emt 0:00:30]} Bxf6 {[%emt 0:01:30]} 19. Qf4 {[%emt 0:00:30]} Kg7 {[%emt 0:02:30]} 20. Qxg3 {[%emt 0:01:30]} Rh8 {[%emt 0:01:30]} 21. c3 {[%emt 0:08:30]} Rh7 {[%emt 0:05:30]} 22. Bd3 {[%emt 0:03:46]} Be5 {[%emt 0:02:53]} 23. Qg4 {[%emt 0:00:46]} Bc8 {[%emt 0:00:53]} 24. Qf3 {[%emt 0:01:39]} g5 {[%emt 0:03:50]} 25. Bc2 {[%emt 0:04:37]} Bd7 {[%emt 0:01:11]} 26. Rb1 {[%emt 0:01:32]} Bb5 {[%emt 0:00:45]} 27. Bd3 {[%emt 0:01:07]} Be8 {[%emt 0:03:22]} 28. cxb4 {[%emt 0:01:59]} cxb4 {[%emt 0:02:21]} 29. Be2 {[%emt 0:00:22]} Qb6+ {[%emt 0:01:24]} 30. Nf2 {[%emt 0:01:02]} f6 {[%emt 0:00:48]} 31. Qd3 {[%emt 0:00:40]} Bb5 {[%emt 0:02:28]} 32. Qd1 {[%emt 0:00:17]} Qe3 {[%emt 0:01:47]} 33. Bxb5 {[%emt 0:01:45]} Qg3 {[%emt 0:03:13]} 34. Ng4 {[%emt 0:00:12]} Rxh3 {[%emt 0:00:52]} 35. Rf3 {[%emt 0:00:45]} Rh1+ {[%emt 0:02:24]} 36. Kxh1 {[%emt 0:00:12]} Rh8+ {[%emt 0:00:50]} 37. Kg1 {[%emt 0:00:05]} Qh4 {[%emt 0:00:14]} 38. Rh3 {[%emt 0:00:16]} Bh2+ {[%emt 0:00:44]} 39. Rxh2 {[%emt 0:00:31]} Qg3 {[%emt 0:00:45]} 40. Rxh8 {[%emt 0:00:13]} 1-0